[Event "*** Qualifier 1: Titled Tuesday 3|2 Blitz"]
[Site "Chess.com"]
[Date "2017.04.04"]
[Round "2"]
[White "Ginger_GM"]
[Black "Keranke"]
[Result "1/2-1/2"]
[WhiteElo "2482"]
[BlackElo "2706"]
[TimeControl "180+2"]
[EndTime "13:27:31 PDT"]
[Termination "Game drawn by agreement"]

1. d4 {[%clk 0:03:02]} 1... d5 {[%clk 0:03:00.5]} 2. c4 {[%clk 0:03:02.4]} 2...
dxc4 {[%clk 0:03:00.4]} 3. e3 {[%clk 0:03:02.1]} 3... e5 {[%clk 0:02:59.8]} 4.
Bxc4 {[%clk 0:03:00.9]} 4... exd4 {[%clk 0:03:01]} 5. exd4 {[%clk 0:03:01.7]}
5... Bd6 {[%clk 0:03:02.1]} 6. Qe2+ {[%clk 0:03:01.5]} 6... Qe7 {[%clk
0:03:01.7]} 7. Qxe7+ {[%clk 0:03:01]} 7... Nxe7 {[%clk 0:03:02.2]} 8. Nf3 {[%clk
0:03:01.3]} 8... O-O {[%clk 0:03:01.2]} 9. O-O {[%clk 0:03:01.8]} 9... Nbc6
{[%clk 0:03:00.3]} 10. h3 {[%clk 0:02:51.3]} 10... Nf5 {[%clk 0:02:32]} 11. Rd1
{[%clk 0:02:38.5]} 11... Bd7 {[%clk 0:02:22.6]} 12. Nc3 {[%clk 0:02:36.9]} 12...
h6 {[%clk 0:02:16]} 13. g4 {[%clk 0:02:27.9]} 13... Nfe7 {[%clk 0:02:15.5]} 14.
Be3 {[%clk 0:02:15.3]} 14... Ng6 {[%clk 0:02:13.1]} 15. Nb5 {[%clk 0:02:08.1]}
15... Bf4 {[%clk 0:02:11.9]} 16. Rac1 {[%clk 0:01:59]} 16... a6 {[%clk
0:02:10.3]} 17. Nc3 {[%clk 0:01:57.5]} 17... Rfe8 {[%clk 0:02:08.4]} 18. Re1
{[%clk 0:01:57.7]} 18... Rad8 {[%clk 0:02:05.8]} 19. Nd5 {[%clk 0:01:51.2]}
19... Bd6 {[%clk 0:02:06.8]} 20. Nc3 {[%clk 0:01:39.3]} 20... Nf4 {[%clk
0:02:00.5]} 21. Bxf4 {[%clk 0:01:37.3]} 21... Bxf4 {[%clk 0:02:02.4]} 22. Rcd1
{[%clk 0:01:37.8]} 22... Kf8 {[%clk 0:01:56.6]} 23. a3 {[%clk 0:01:32.2]} 23...
Rxe1+ {[%clk 0:01:51.2]} 24. Rxe1 {[%clk 0:01:31.9]} 24... Re8 {[%clk
0:01:52.7]} 25. Rd1 {[%clk 0:01:27.3]} 25... h5 {[%clk 0:01:35.8]} 26. gxh5
{[%clk 0:01:10.9]} 26... Bxh3 {[%clk 0:01:37.2]} 27. Ne2 {[%clk 0:00:58.4]}
27... Bd6 {[%clk 0:01:29]} 28. Ng5 {[%clk 0:00:52.2]} 28... Bg4 {[%clk
0:01:29.2]} 29. f3 {[%clk 0:00:51.8]} 29... Bxh5 {[%clk 0:01:29.7]} 30. Kf2
{[%clk 0:00:46.8]} 30... Bg6 {[%clk 0:01:15.8]} 31. Ng3 {[%clk 0:00:35.1]} 31...
Nxd4 {[%clk 0:01:07.4]} 32. N3e4 {[%clk 0:00:27.2]} 32... Nf5 {[%clk 0:00:57.5]}
33. Rh1 {[%clk 0:00:20.9]} 33... Be5 {[%clk 0:00:54.3]} 34. b4 {[%clk
0:00:20.9]} 34... Bd4+ {[%clk 0:00:54.6]} 35. Ke2 {[%clk 0:00:21.3]} 35... Ng3+
{[%clk 0:00:55.6]} 36. Kd3 {[%clk 0:00:20.9]} 36... Nxh1 {[%clk 0:00:56.6]} 37.
Kxd4 {[%clk 0:00:22.6]} 37... Bxe4 {[%clk 0:00:47.6]} 38. Nxe4 {[%clk
0:00:22.7]} 38... f5 {[%clk 0:00:49.1]} 39. Nc5 {[%clk 0:00:23.5]} 39... b6
{[%clk 0:00:40.1]} 40. Nxa6 {[%clk 0:00:22.2]} 40... Re7 {[%clk 0:00:40.1]} 41.
Nb8 {[%clk 0:00:21.9]} 41... g5 {[%clk 0:00:39.2]} 42. a4 {[%clk 0:00:22.7]}
42... g4 {[%clk 0:00:38.6]} 43. fxg4 {[%clk 0:00:23.4]} 43... fxg4 {[%clk
0:00:40.5]} 44. a5 {[%clk 0:00:24.5]} 44... c5+ {[%clk 0:00:40]} 45. bxc5 {[%clk
0:00:24.8]} 45... bxa5 {[%clk 0:00:40.8]} 46. Nc6 {[%clk 0:00:25.5]} 46... g3
{[%clk 0:00:37.4]} 47. Bd5 {[%clk 0:00:25.5]} 47... Rd7 {[%clk 0:00:37.8]} 48.
Ne5 {[%clk 0:00:26.1]} 48... Rg7 {[%clk 0:00:31.4]} 49. Bxh1 {[%clk 0:00:25.1]}
49... g2 {[%clk 0:00:32.6]} 50. Bxg2 {[%clk 0:00:26]} 50... Rxg2 {[%clk
0:00:34.5]} 51. c6 {[%clk 0:00:27.4]} 51... Ke7 {[%clk 0:00:25.4]} 52. Kc5
{[%clk 0:00:27]} 52... a4 {[%clk 0:00:21.5]} 53. Nc4 {[%clk 0:00:26.3]} 53...
Rc2 {[%clk 0:00:20.1]} 54. Kb4 {[%clk 0:00:26.4]} 54... Kd8 {[%clk 0:00:18.6]}
55. Na5 {[%clk 0:00:24.7]} 55... Ra2 {[%clk 0:00:17.2]} 56. Kb5 {[%clk
0:00:22.1]} 56... Kc7 {[%clk 0:00:17.4]} 57. Kb4 {[%clk 0:00:23.3]} 57... Ra1
{[%clk 0:00:18.4]} 58. Nc4 {[%clk 0:00:21.5]} 58... Rb1+ {[%clk 0:00:17.4]} 59.
Kxa4 {[%clk 0:00:22]} 59... Kxc6 {[%clk 0:00:18.7]} 60. Na5+ {[%clk 0:00:22.8]}
60... Kc5 {[%clk 0:00:18.4]} 61. Nb3+ {[%clk 0:00:23.9]} 61... Kc4 {[%clk
0:00:19.9]} 62. Na5+ {[%clk 0:00:25]} 62... Kc3 {[%clk 0:00:21.4]} 63. Nc6
{[%clk 0:00:21.6]} 63... Rb6 {[%clk 0:00:22.4]} 64. Na5 {[%clk 0:00:22.1]} 64...
Rb4+ {[%clk 0:00:18.6]} 65. Ka3 {[%clk 0:00:22.9]} 65... Rb5 {[%clk 0:00:19.9]}
66. Ka4 {[%clk 0:00:23.6]} 66... Rb6 {[%clk 0:00:20.2]} 67. Ka3 {[%clk
0:00:23.4]} 67... Kd4 {[%clk 0:00:15.7]} 68. Ka4 {[%clk 0:00:22.9]} 68... Kc5
{[%clk 0:00:14.2]} 69. Nb3+ {[%clk 0:00:23.9]} 69... Kc4 {[%clk 0:00:15.6]} 70.
Na5+ {[%clk 0:00:24.9]} 70... Kc3 {[%clk 0:00:15.7]} 71. Ka3 {[%clk 0:00:25]}
71... Rb4 {[%clk 0:00:17]} 72. Nc6 {[%clk 0:00:16.3]} 72... Rb5 {[%clk
0:00:18.3]} 73. Ka4 {[%clk 0:00:17.2]} 73... Rc5 {[%clk 0:00:19.5]} 74. Na5
{[%clk 0:00:17.3]} 74... Rh5 {[%clk 0:00:12.2]} 75. Nb7 {[%clk 0:00:16.3]} 75...
Kc4 {[%clk 0:00:10.3]} 76. Na5+ {[%clk 0:00:17.2]} 76... Kc3 {[%clk 0:00:10.8]}
77. Nb7 {[%clk 0:00:18.2]} 77... Rd5 {[%clk 0:00:11.7]} 78. Na5 {[%clk
0:00:18.5]} 78... Rc5 {[%clk 0:00:10.1]} 79. Nb7 {[%clk 0:00:18]} 79... Rc7
{[%clk 0:00:11.4]} 80. Na5 {[%clk 0:00:18.8]} 80... Rc5 {[%clk 0:00:12]} 81. Nb7
{[%clk 0:00:19.4]} 81... Re5 {[%clk 0:00:13.3]} 82. Na5 {[%clk 0:00:19.7]} 82...
Rd5 {[%clk 0:00:13.2]} 83. Nb7 {[%clk 0:00:20.2]} 83... Kc4 {[%clk 0:00:14.7]}
84. Na5+ {[%clk 0:00:21]} 84... Kc5 {[%clk 0:00:16.4]} 85. Nb3+ {[%clk
0:00:22.2]} 85... Kc4 {[%clk 0:00:16.6]} 86. Na5+ {[%clk 0:00:23.1]} 86... Kc3
{[%clk 0:00:17.8]} 87. Nb7 {[%clk 0:00:24]} 1/2-1/2

[Event "*** Qualifier 1: Titled Tuesday 3|2 Blitz"]
[Site "Chess.com"]
[Date "2017.04.04"]
[Round "2"]
[White "nonscitis"]
[Black "evgenyermolaev"]
[Result "0-1"]
[WhiteElo "2359"]
[BlackElo "2380"]
[TimeControl "180+2"]
[EndTime "13:28:08 PDT"]
[Termination "evgenyermolaev won on time"]

1. e4 {[%clk 0:03:02]} 1... c5 {[%clk 0:03:01]} 2. Nf3 {[%clk 0:03:01.7]} 2...
d6 {[%clk 0:03:02.2]} 3. d4 {[%clk 0:03:02.2]} 3... cxd4 {[%clk 0:03:03.7]} 4.
Nxd4 {[%clk 0:03:03.8]} 4... Nf6 {[%clk 0:03:05.6]} 5. Nc3 {[%clk 0:03:04.9]}
5... a6 {[%clk 0:03:07.1]} 6. Bg5 {[%clk 0:03:05.4]} 6... e6 {[%clk 0:03:08.3]}
7. Qe2 {[%clk 0:03:04.8]} 7... Nbd7 {[%clk 0:03:04]} 8. O-O-O {[%clk 0:03:03.6]}
8... Qc7 {[%clk 0:03:04.3]} 9. Kb1 {[%clk 0:03:02.1]} 9... b5 {[%clk 0:03:04.5]}
10. f4 {[%clk 0:03:01.3]} 10... Bb7 {[%clk 0:03:04.1]} 11. a3 {[%clk 0:02:54.2]}
11... Be7 {[%clk 0:02:27.1]} 12. g3 {[%clk 0:02:53.8]} 12... h6 {[%clk
0:02:12.7]} 13. Bh4 {[%clk 0:02:41.4]} 13... Rg8 {[%clk 0:01:34]} 14. Bxf6
{[%clk 0:02:37.9]} 14... Nxf6 {[%clk 0:01:34]} 15. Bg2 {[%clk 0:02:38.1]} 15...
Qc4 {[%clk 0:01:23.2]} 16. Qd2 {[%clk 0:02:27.7]} 16... g5 {[%clk 0:01:11.5]}
17. e5 {[%clk 0:02:25.4]} 17... Nd5 {[%clk 0:01:05.5]} 18. Nxd5 {[%clk
0:02:24.1]} 18... Bxd5 {[%clk 0:01:06.4]} 19. Bxd5 {[%clk 0:02:13.9]} 19... Qxd5
{[%clk 0:01:06.9]} 20. exd6 {[%clk 0:02:13]} 20... Bxd6 {[%clk 0:01:05.4]} 21.
Rhe1 {[%clk 0:02:02.5]} 21... O-O-O {[%clk 0:00:52.6]} 22. Qc3+ {[%clk
0:01:35.4]} 22... Qc5 {[%clk 0:00:50.7]} 23. Qf3 {[%clk 0:01:34.6]} 23... Qd5
{[%clk 0:00:34.7]} 24. Qxd5 {[%clk 0:01:09.6]} 24... exd5 {[%clk 0:00:36.6]} 25.
Nc6 {[%clk 0:01:08.6]} 25... Rd7 {[%clk 0:00:31.8]} 26. Rxd5 {[%clk 0:01:04]}
26... gxf4 {[%clk 0:00:21.2]} 27. Rxd6 {[%clk 0:00:50.6]} 27... Rxd6 {[%clk
0:00:17.7]} 28. Ne7+ {[%clk 0:00:51.1]} 28... Kd8 {[%clk 0:00:14.6]} 29. Nxg8
{[%clk 0:00:52.2]} 29... fxg3 {[%clk 0:00:15.8]} 30. hxg3 {[%clk 0:00:52.3]}
30... Rg6 {[%clk 0:00:16.9]} 31. Ne7 {[%clk 0:00:52]} 31... Rxg3 {[%clk
0:00:17.8]} 32. Nc6+ {[%clk 0:00:48.1]} 32... Kc7 {[%clk 0:00:15.9]} 33. Nb4
{[%clk 0:00:45.6]} 33... h5 {[%clk 0:00:13.7]} 34. Nxa6+ {[%clk 0:00:44.4]}
34... Kb6 {[%clk 0:00:14.8]} 35. Nb4 {[%clk 0:00:45.2]} 35... h4 {[%clk
0:00:16]} 36. Nd5+ {[%clk 0:00:38.1]} 36... Kc5 {[%clk 0:00:16.5]} 37. Nf4
{[%clk 0:00:38]} 37... Rf3 {[%clk 0:00:16.2]} 38. Nd3+ {[%clk 0:00:31.7]} 38...
Kd4 {[%clk 0:00:17.4]} 39. Ka2 {[%clk 0:00:18.5]} 39... h3 {[%clk 0:00:18.5]}
40. Rh1 {[%clk 0:00:18.7]} 40... Ke3 {[%clk 0:00:17.1]} 41. Ne1 {[%clk 0:00:16]}
41... Rg3 {[%clk 0:00:17.8]} 42. a4 {[%clk 0:00:15.6]} 42... bxa4 {[%clk
0:00:18.3]} 43. c4 {[%clk 0:00:16.6]} 43... Kd4 {[%clk 0:00:16.3]} 44. c5 {[%clk
0:00:16.8]} 44... Kxc5 {[%clk 0:00:17]} 45. Kb1 {[%clk 0:00:16.2]} 45... Kd4
{[%clk 0:00:17.2]} 46. Kc2 {[%clk 0:00:17.7]} 46... Ke3 {[%clk 0:00:18.2]} 47.
Kd1 {[%clk 0:00:18.6]} 47... Kf2 {[%clk 0:00:18.7]} 48. Kd2 {[%clk 0:00:17.5]}
48... Rg1 {[%clk 0:00:06.7]} 49. Rh2+ {[%clk 0:00:16.9]} 49... Kg3 {[%clk
0:00:06]} 50. Re2 {[%clk 0:00:17.6]} 50... h2 {[%clk 0:00:03.6]} 51. Re3+ {[%clk
0:00:18.7]} 51... Kf2 {[%clk 0:00:03.8]} 52. Nd3+ {[%clk 0:00:19.1]} 52... Kf1
{[%clk 0:00:04.4]} 53. Rf3+ {[%clk 0:00:19.1]} 53... Kg2 {[%clk 0:00:05.4]} 54.
Rf2+ {[%clk 0:00:19.1]} 54... Kg3 {[%clk 0:00:06.8]} 55. Rxf7 {[%clk 0:00:15.4]}
55... h1=Q {[%clk 0:00:07.3]} 56. Rg7+ {[%clk 0:00:16.7]} 56... Kf3 {[%clk
0:00:08.4]} 57. Rf7+ {[%clk 0:00:18]} 57... Kg2 {[%clk 0:00:08.5]} 58. Rg7+
{[%clk 0:00:18.5]} 58... Kf3 {[%clk 0:00:07.8]} 59. Rf7+ {[%clk 0:00:18.5]}
59... Kg3 {[%clk 0:00:08.5]} 60. Rg7+ {[%clk 0:00:19.2]} 60... Kh4 {[%clk
0:00:07.4]} 61. Rh7+ {[%clk 0:00:18.9]} 61... Kg5 {[%clk 0:00:08.4]} 62. Rxh1
{[%clk 0:00:18.6]} 62... Rxh1 {[%clk 0:00:10.3]} 63. Nc5 {[%clk 0:00:19.1]}
63... Rh4 {[%clk 0:00:09.5]} 64. Kc3 {[%clk 0:00:20.2]} 64... Kf5 {[%clk
0:00:10.2]} 65. b4 {[%clk 0:00:20.3]} 65... a3 {[%clk 0:00:09]} 66. Kb3 {[%clk
0:00:20.7]} 66... Rh3+ {[%clk 0:00:09.5]} 67. Ka2 {[%clk 0:00:21.7]} 67... Ke5
{[%clk 0:00:08.3]} 68. b5 {[%clk 0:00:19.5]} 68... Kd5 {[%clk 0:00:07.1]} 69.
Na4 {[%clk 0:00:13]} 69... Kc4 {[%clk 0:00:05]} 70. b6 {[%clk 0:00:13.9]} 70...
Kb4 {[%clk 0:00:03.7]} 71. b7 {[%clk 0:00:14.1]} 71... Rh2+ {[%clk 0:00:05]} 72.
Ka1 {[%clk 0:00:14.3]} 72... Rh8 {[%clk 0:00:06.2]} 73. Nb6 {[%clk 0:00:14.7]}
73... Rb8 {[%clk 0:00:06.2]} 74. Nd5+ {[%clk 0:00:15.7]} 74... Kc5 {[%clk
0:00:06.4]} 75. Nc3 {[%clk 0:00:14.4]} 75... Kb4 {[%clk 0:00:07.1]} 76. Nd5+
{[%clk 0:00:14.2]} 76... Kb3 {[%clk 0:00:08.3]} 77. Nf6 {[%clk 0:00:08]} 77...
Rxb7 {[%clk 0:00:09.4]} 78. Ne4 {[%clk 0:00:09.3]} 78... Rh7 {[%clk 0:00:10.1]}
79. Nd2+ {[%clk 0:00:09.5]} 79... Kc3 {[%clk 0:00:10.9]} 80. Ne4+ {[%clk
0:00:10.3]} 80... Kb4 {[%clk 0:00:11.2]} 81. Ka2 {[%clk 0:00:10]} 81... Rh2+
{[%clk 0:00:11.4]} 82. Ka1 {[%clk 0:00:10.3]} 82... Re2 {[%clk 0:00:12.1]} 83.
Nd6 {[%clk 0:00:09]} 83... Kb3 {[%clk 0:00:11.1]} 0-1

[Event "*** Qualifier 1: Titled Tuesday 3|2 Blitz"]
[Site "Chess.com"]
[Date "2017.04.04"]
[Round "2"]
[White "MyleneFarmer"]
[Black "davidarenas1224"]
[Result "0-1"]
[WhiteElo "2336"]
[BlackElo "2313"]
[TimeControl "180+2"]
[EndTime "13:29:00 PDT"]
[Termination "davidarenas1224 won by checkmate"]

1. d4 {[%clk 0:03:02]} 1... Nf6 {[%clk 0:03:00.1]} 2. c4 {[%clk 0:03:01.8]} 2...
g6 {[%clk 0:03:00.9]} 3. Nf3 {[%clk 0:03:01.4]} 3... Bg7 {[%clk 0:03:01.4]} 4.
g3 {[%clk 0:03:00.6]} 4... O-O {[%clk 0:03:02.1]} 5. Bg2 {[%clk 0:03:01.4]} 5...
d6 {[%clk 0:03:03.3]} 6. O-O {[%clk 0:03:00.4]} 6... Nc6 {[%clk 0:03:04.7]} 7.
Nc3 {[%clk 0:03:00.6]} 7... a6 {[%clk 0:03:06.1]} 8. Bf4 {[%clk 0:03:00.1]} 8...
Nh5 {[%clk 0:02:57.9]} 9. Bg5 {[%clk 0:02:59.2]} 9... h6 {[%clk 0:02:57.8]} 10.
Be3 {[%clk 0:02:57.7]} 10... e5 {[%clk 0:02:56.7]} 11. dxe5 {[%clk 0:02:25.4]}
11... dxe5 {[%clk 0:02:42.7]} 12. Qxd8 {[%clk 0:01:35.6]} 12... Nxd8 {[%clk
0:02:43.1]} 13. Nd5 {[%clk 0:01:24.6]} 13... Ne6 {[%clk 0:02:35.9]} 14. Ne7+
{[%clk 0:01:02]} 14... Kh7 {[%clk 0:02:35.8]} 15. Nxc8 {[%clk 0:01:02.5]} 15...
Raxc8 {[%clk 0:02:37.1]} 16. Rfd1 {[%clk 0:01:01.5]} 16... Rfd8 {[%clk
0:02:29.8]} 17. Nd2 {[%clk 0:00:42]} 17... Rb8 {[%clk 0:01:51.4]} 18. Nb3 {[%clk
0:00:35.8]} 18... b6 {[%clk 0:01:34.7]} 19. Bd5 {[%clk 0:00:32.2]} 19... Nf6
{[%clk 0:00:55.5]} 20. Rac1 {[%clk 0:00:29.1]} 20... Ng4 {[%clk 0:00:50.8]} 21.
Bd2 {[%clk 0:00:22.7]} 21... Nd4 {[%clk 0:00:41]} 22. Nxd4 {[%clk 0:00:22.8]}
22... exd4 {[%clk 0:00:42.2]} 23. h3 {[%clk 0:00:23.3]} 23... Ne5 {[%clk
0:00:36.2]} 24. Bf4 {[%clk 0:00:21.6]} 24... f5 {[%clk 0:00:32.9]} 25. Kg2
{[%clk 0:00:20.9]} 25... g5 {[%clk 0:00:32.2]} 26. Bd2 {[%clk 0:00:22.2]} 26...
c5 {[%clk 0:00:32]} 27. b4 {[%clk 0:00:22.9]} 27... Nd7 {[%clk 0:00:28.4]} 28.
a3 {[%clk 0:00:22.1]} 28... Kg6 {[%clk 0:00:28.7]} 29. h4 {[%clk 0:00:22.7]}
29... Nf6 {[%clk 0:00:29.3]} 30. Bc6 {[%clk 0:00:22.4]} 30... Ne4 {[%clk
0:00:29.3]} 31. hxg5 {[%clk 0:00:21.8]} 31... hxg5 {[%clk 0:00:30.1]} 32. Be1
{[%clk 0:00:19.3]} 32... Nd6 {[%clk 0:00:29.2]} 33. Bd5 {[%clk 0:00:19.6]} 33...
a5 {[%clk 0:00:24.8]} 34. bxc5 {[%clk 0:00:20]} 34... bxc5 {[%clk 0:00:25.7]}
35. Rb1 {[%clk 0:00:21.9]} 35... Re8 {[%clk 0:00:21.3]} 36. Kf1 {[%clk
0:00:19.1]} 36... a4 {[%clk 0:00:17.6]} 37. Bc6 {[%clk 0:00:19.6]} 37... Rh8
{[%clk 0:00:15.5]} 38. Rxb8 {[%clk 0:00:19.9]} 38... Rxb8 {[%clk 0:00:16.1]} 39.
Bxa4 {[%clk 0:00:21.1]} 39... Ra8 {[%clk 0:00:17.3]} 40. Bc6 {[%clk 0:00:21.3]}
40... Rxa3 {[%clk 0:00:18]} 41. Bd5 {[%clk 0:00:22.6]} 41... Ra4 {[%clk
0:00:17.9]} 42. Rb1 {[%clk 0:00:23.9]} 42... Nxc4 {[%clk 0:00:17.1]} 43. Rc1
{[%clk 0:00:25.3]} 43... Nb2 {[%clk 0:00:14]} 44. Rxc5 {[%clk 0:00:26.1]} 44...
Ra1 {[%clk 0:00:15]} 45. Rc6+ {[%clk 0:00:27.5]} 45... Bf6 {[%clk 0:00:13.7]}
46. Bc4 {[%clk 0:00:18.9]} 46... g4 {[%clk 0:00:12.1]} 47. f3 {[%clk 0:00:18.9]}
47... gxf3 {[%clk 0:00:11.5]} 48. exf3 {[%clk 0:00:20.4]} 48... d3 {[%clk
0:00:12.5]} 49. Kf2 {[%clk 0:00:22]} 49... Nxc4 {[%clk 0:00:09.2]} 50. Rxc4
{[%clk 0:00:22.4]} 50... Ra2+ {[%clk 0:00:10]} 51. Ke3 {[%clk 0:00:23.7]} 51...
Re2+ {[%clk 0:00:10.8]} 52. Kxd3 {[%clk 0:00:24.5]} 52... Rxe1 {[%clk
0:00:12.7]} 53. g4 {[%clk 0:00:26.1]} 53... fxg4 {[%clk 0:00:11.9]} 54. Rxg4+
{[%clk 0:00:28]} 54... Kf5 {[%clk 0:00:12.3]} 55. Re4 {[%clk 0:00:29.4]} 55...
Rf1 {[%clk 0:00:11.9]} 56. Ke2 {[%clk 0:00:30.8]} 56... Ra1 {[%clk 0:00:12.3]}
57. Rb4 {[%clk 0:00:31.3]} 57... Be5 {[%clk 0:00:13.3]} 58. Ke3 {[%clk
0:00:32.2]} 58... Ra3+ {[%clk 0:00:14.4]} 59. Ke2 {[%clk 0:00:33.6]} 59... Ra2+
{[%clk 0:00:15.6]} 60. Ke3 {[%clk 0:00:35]} 60... Ra3+ {[%clk 0:00:17]} 61. Ke2
{[%clk 0:00:36.5]} 61... Ra8 {[%clk 0:00:18.8]} 62. Ke3 {[%clk 0:00:37.2]} 62...
Bf6 {[%clk 0:00:20.5]} 63. Ke2 {[%clk 0:00:38.4]} 63... Re8+ {[%clk 0:00:20.8]}
64. Kf2 {[%clk 0:00:39.8]} 64... Be5 {[%clk 0:00:21.8]} 65. Ke3 {[%clk
0:00:40.9]} 65... Bd6+ {[%clk 0:00:22.1]} 66. Re4 {[%clk 0:00:41.2]} 66... Bc5+
{[%clk 0:00:22.4]} 67. Kd3 {[%clk 0:00:42]} 67... Rd8+ {[%clk 0:00:22.9]} 68.
Ke2 {[%clk 0:00:43.3]} 68... Bd6 {[%clk 0:00:23.6]} 69. Rd4 {[%clk 0:00:43.4]}
69... Re8+ {[%clk 0:00:24.5]} 70. Kd3 {[%clk 0:00:44.9]} 70... Bf4 {[%clk
0:00:24.5]} 71. Rd5+ {[%clk 0:00:45.6]} 71... Be5 {[%clk 0:00:24.4]} 72. Rb5
{[%clk 0:00:45.5]} 72... Kf4 {[%clk 0:00:24.5]} 73. Rb7 {[%clk 0:00:43.9]} 73...
Kxf3 {[%clk 0:00:23.8]} 74. Rf7+ {[%clk 0:00:44.9]} 74... Bf4 {[%clk 0:00:25]}
75. Kd4 {[%clk 0:00:45]} 75... Rd8+ {[%clk 0:00:25.3]} 76. Kc4 {[%clk
0:00:45.9]} 76... Ke4 {[%clk 0:00:27.1]} 77. Rh7 {[%clk 0:00:46]} 77... Rc8+
{[%clk 0:00:26.9]} 78. Kb5 {[%clk 0:00:46.9]} 78... Kd5 {[%clk 0:00:26.8]} 79.
Rh5+ {[%clk 0:00:47.2]} 79... Be5 {[%clk 0:00:27.9]} 80. Rg5 {[%clk 0:00:44.3]}
80... Rb8+ {[%clk 0:00:28.7]} 81. Ka4 {[%clk 0:00:38]} 81... Kd4 {[%clk
0:00:23.9]} 82. Ka5 {[%clk 0:00:31.1]} 82... Bd6 {[%clk 0:00:19.7]} 83. Rb5
{[%clk 0:00:30.3]} 83... Rc8 {[%clk 0:00:16.6]} 84. Kb6 {[%clk 0:00:30.6]} 84...
Bc5+ {[%clk 0:00:16.5]} 85. Kb7 {[%clk 0:00:31.2]} 85... Rg8 {[%clk 0:00:17.2]}
86. Rb1 {[%clk 0:00:30.9]} 86... Kd5 {[%clk 0:00:17.8]} 87. Rd1+ {[%clk
0:00:31.6]} 87... Bd4 {[%clk 0:00:18.9]} 88. Kc7 {[%clk 0:00:27.7]} 88... Rg7+
{[%clk 0:00:19.6]} 89. Kc8 {[%clk 0:00:24.2]} 89... Kc5 {[%clk 0:00:18.8]} 90.
Kd8 {[%clk 0:00:24.1]} 90... Rh7 {[%clk 0:00:18.8]} 91. Kc8 {[%clk 0:00:23.3]}
91... Bf6 {[%clk 0:00:19.3]} 92. Rc1+ {[%clk 0:00:22.7]} 92... Kd6 {[%clk
0:00:19]} 93. Rd1+ {[%clk 0:00:24.1]} 93... Ke6 {[%clk 0:00:20.2]} 94. Rc1
{[%clk 0:00:21.5]} 94... Be5 {[%clk 0:00:21.4]} 95. Rd1 {[%clk 0:00:16]} 95...
Rg7 {[%clk 0:00:21.7]} 96. Re1 {[%clk 0:00:14.4]} 96... Rc7+ {[%clk 0:00:22.4]}
97. Kd8 {[%clk 0:00:15.2]} 97... Rc4 {[%clk 0:00:22.1]} 98. Rd1 {[%clk
0:00:09.4]} 98... Bf6+ {[%clk 0:00:21.6]} 99. Ke8 {[%clk 0:00:08.9]} 99... Rc8+
{[%clk 0:00:23]} 100. Rd8 {[%clk 0:00:02.3]} 100... Rxd8# {[%clk 0:00:24.9]} 0-1

[Event "*** Qualifier 1: Titled Tuesday 3|2 Blitz"]
[Site "Chess.com"]
[Date "2017.04.04"]
[Round "3"]
[White "BjarkeSahl"]
[Black "ohusbands"]
[Result "1-0"]
[WhiteElo "2177"]
[BlackElo "2216"]
[TimeControl "180+2"]
[EndTime "13:34:21 PDT"]
[Termination "BjarkeSahl won by resignation"]

1. e4 {[%clk 0:03:01.9]} 1... c5 {[%clk 0:02:57.8]} 2. c3 {[%clk 0:03:00.8]}
2... Nf6 {[%clk 0:02:57.2]} 3. e5 {[%clk 0:03:01.5]} 3... Nd5 {[%clk 0:02:57.6]}
4. Nf3 {[%clk 0:03:02.6]} 4... Nc6 {[%clk 0:02:56.1]} 5. d4 {[%clk 0:03:04.2]}
5... cxd4 {[%clk 0:02:54.4]} 6. cxd4 {[%clk 0:03:03.4]} 6... d6 {[%clk
0:02:54.8]} 7. exd6 {[%clk 0:03:04.3]} 7... Qxd6 {[%clk 0:02:52.8]} 8. Nc3
{[%clk 0:03:05.8]} 8... e6 {[%clk 0:02:53]} 9. Bd3 {[%clk 0:03:03.2]} 9... Be7
{[%clk 0:02:49.7]} 10. O-O {[%clk 0:03:03.8]} 10... O-O {[%clk 0:02:49.3]} 11.
Re1 {[%clk 0:03:01.1]} 11... Rd8 {[%clk 0:02:41.6]} 12. Ne4 {[%clk 0:03:00.8]}
12... Qc7 {[%clk 0:02:28.3]} 13. a3 {[%clk 0:03:01.7]} 13... Nf4 {[%clk
0:02:16.6]} 14. Bc2 {[%clk 0:02:51.5]} 14... b6 {[%clk 0:02:12.5]} 15. Be3
{[%clk 0:02:51]} 15... Bb7 {[%clk 0:02:06.7]} 16. Rc1 {[%clk 0:02:52.3]} 16...
Rac8 {[%clk 0:02:04.3]} 17. Neg5 {[%clk 0:02:24.7]} 17... h6 {[%clk 0:01:52.9]}
18. Ne4 {[%clk 0:02:19.1]} 18... Qb8 {[%clk 0:01:47.1]} 19. Qd2 {[%clk
0:02:17.4]} 19... Nd5 {[%clk 0:01:40]} 20. Bxh6 {[%clk 0:02:16.7]} 20... gxh6
{[%clk 0:01:37.8]} 21. Qxh6 {[%clk 0:02:15.7]} 21... Qf4 {[%clk 0:01:20]} 22.
Neg5 {[%clk 0:02:10]} 22... Nf6 {[%clk 0:01:04.1]} 23. Bh7+ {[%clk 0:02:05.4]}
1-0

[Event "*** Qualifier 1: Titled Tuesday 3|2 Blitz"]
[Site "Chess.com"]
[Date "2017.04.04"]
[Round "3"]
[White "Vamostodorecto"]
[Black "Sebastian"]
[Result "0-1"]
[WhiteElo "2346"]
[BlackElo "2608"]
[TimeControl "180+2"]
[EndTime "13:34:33 PDT"]
[Termination "Sebastian won by resignation"]

1. d4 {[%clk 0:03:02]} 1... d5 {[%clk 0:03:00.6]} 2. c4 {[%clk 0:03:02.1]} 2...
dxc4 {[%clk 0:03:02]} 3. Nf3 {[%clk 0:03:02]} 3... Nf6 {[%clk 0:03:02.8]} 4. e3
{[%clk 0:03:02.7]} 4... e6 {[%clk 0:03:03.9]} 5. Bxc4 {[%clk 0:03:03.1]} 5... a6
{[%clk 0:03:05.8]} 6. O-O {[%clk 0:03:00.8]} 6... c5 {[%clk 0:03:07.5]} 7. Bb3
{[%clk 0:02:59]} 7... Be7 {[%clk 0:03:06.9]} 8. Nc3 {[%clk 0:02:59.7]} 8... O-O
{[%clk 0:03:02.8]} 9. Qe2 {[%clk 0:02:57.8]} 9... cxd4 {[%clk 0:03:03.9]} 10.
Rd1 {[%clk 0:02:57.8]} 10... Nc6 {[%clk 0:03:04.3]} 11. exd4 {[%clk 0:02:55.9]}
11... Na5 {[%clk 0:03:05.2]} 12. Bc2 {[%clk 0:02:51.1]} 12... b5 {[%clk
0:03:06.7]} 13. d5 {[%clk 0:02:41.3]} 13... exd5 {[%clk 0:03:04.8]} 14. Bg5
{[%clk 0:02:06.8]} 14... Bb7 {[%clk 0:03:04.6]} 15. Nd4 {[%clk 0:01:21.5]} 15...
g6 {[%clk 0:03:05.2]} 16. Re1 {[%clk 0:01:11.7]} 16... Re8 {[%clk 0:02:58.7]}
17. Qf3 {[%clk 0:01:12.1]} 17... Ne4 {[%clk 0:02:55.1]} 18. Bxe7 {[%clk
0:01:06]} 18... Qxe7 {[%clk 0:02:55.8]} 19. Rad1 {[%clk 0:00:37.2]} 19... Nc4
{[%clk 0:02:54.4]} 20. Qh3 {[%clk 0:00:16.5]} 20... Nxb2 {[%clk 0:02:43.9]} 21.
f3 {[%clk 0:00:16]} 21... Nxd1 {[%clk 0:02:40.8]} 22. Nxd1 {[%clk 0:00:13.4]}
22... Ng5 {[%clk 0:02:38.6]} 23. Rxe7 {[%clk 0:00:09.5]} 23... Nxh3+ {[%clk
0:02:39.6]} 0-1